bitfinex-derivatives/quotes_BTCF0:USTF0_20230402
["timestamp","ask_amount","ask_price","bid_price","bid_amount"]
[1680399578077,0.3007,28441.0,28440.0,0.0704]
[1680399579286,0.3017,28441.0,28440.0,0.0724]
[1680399585896,0.001,28441.0,28440.0,0.0724]
[1680399586090,0.3017,28441.0,28440.0,0.0724]
[1680399588497,0.001,28441.0,28440.0,0.0724]
[1680399588694,0.3017,28441.0,28440.0,0.0724]
[1680399591888,0.3017,28441.0,28440.0,0.1428]
[1680399594398,0.3017,28441.0,28440.0,0.0724]
[1680399605310,0.4,28440.0,28435.0,0.0704]
[1680399605506,0.6718,28436.0,28435.0,0.0704]
[1680399606399,0.6718,28436.0,28435.0,0.0724]
[1680399606599,0.4974662,28440.0,28435.0,0.1408]
[1680399606803,0.4974662,28440.0,28438.0,0.0698]
[1680399607010,0.3711,28440.0,28438.0,0.0698]
[1680399607806,0.3741,28440.0,28438.0,0.0718]
[1680399608004,0.3741,28440.0,28439.0,0.0704]
[1680399608005,0.3037,28440.0,28439.0,0.0704]
[1680399608197,0.3037,28440.0,28439.0,0.1204]
[1680399610506,0.3037,28440.0,28439.0,0.1224]
[1680399618009,0.30376,28440.0,28439.0,0.1224]
[1680399619314,0.30376,28440.0,28439.0,0.0724]
[1680399620209,0.30376,28440.0,28439.0,0.002]
[1680399620412,0.37416,28440.0,28439.0,0.002]
[1680399621013,0.30376,28440.0,28439.0,0.0724]
[1680399632722,0.30376,28440.0,28439.0,0.002]
[1680399632723,0.42396,28440.0,28439.0,0.002]
[1680399636024,0.37396,28440.0,28439.0,0.002]
[1680399642019,0.42396,28440.0,28439.0,0.002]
[1680399642422,0.37396,28440.0,28439.0,0.002]
[1680399642926,0.05,28439.0,28434.0,0.1202]
[1680399643123,0.3007,28435.0,28434.0,0.0702]
[1680399643825,0.3007,28435.0,28434.0,0.0712]
[1680399644423,0.3007,28435.0,28434.0,0.0802]
[1680399646624,0.1204,28439.0,28434.0,0.0798]
[1680399646821,0.0704,28439.0,28437.0,0.0699]
[1680399647824,0.0754,28439.0,28437.0,0.0709]
[1680399656931,0.0754,28439.0,28438.0,0.0704]
[1680399657835,0.0754,28439.0,28438.0,0.0714]
[1680399676953,0.0754,28439.0,28438.0,0.001]
[1680399679263,0.2017662,28439.0,28438.0,0.001]
[1680399679560,0.0754,28439.0,28438.0,0.001]
[1680399680960,0.07546,28439.0,28438.0,0.001]
[1680399687070,0.07536,28439.0,28438.0,0.001]
[1680399689961,0.05,28438.0,28434.0,0.0704]
[1680399690161,0.3709,28435.0,28434.0,0.0704]
[1680399690965,0.3709,28435.0,28434.0,0.0714]
[1680399691473,0.3709,28435.0,28434.0,0.0804]
[1680399692361,0.6716,28435.0,28434.0,0.0804]
[1680399696973,0.6712,28435.0,28434.0,0.01]
[1680399700468,0.6782,28435.0,28434.0,0.002]
[1680399706982,0.7481,28435.0,28434.0,0.002]
[1680399709284,0.05,28434.0,28430.0,0.0704]
[1680399709582,0.3007,28431.0,28430.0,0.0704]
[1680399710481,0.3007,28431.0,28430.0,0.0714]
[1680399710784,0.3007,28431.0,28430.0,0.0744]
[1680399712386,0.3097,28431.0,28430.0,0.0714]
[1680399715384,0.3037,28431.0,28430.0,0.0704]
[1680399716277,0.003,28431.0,28430.0,0.0704]
[1680399716486,0.003,28431.0,28430.0,0.4415]
[1680399716686,0.371,28436.0,28431.0,0.05]
[1680399717081,0.3007,28436.0,28435.0,0.0704]
[1680399718085,0.3067,28436.0,28435.0,0.0724]
[1680399718488,0.3007,28436.0,28435.0,0.0704]
[1680399718689,0.3067,28436.0,28435.0,0.0724]
[1680399723591,0.3097,28436.0,28435.0,0.0724]
[1680399726900,0.3801,28436.0,28435.0,0.002]
[1680399728599,0.0794,28436.0,28435.0,0.002]
[1680399728896,0.3801,28436.0,28435.0,0.002]
[1680399729400,0.0794,28436.0,28435.0,0.002]
[1680399729695,0.3801,28436.0,28435.0,0.002]
[1680399729900,0.05,28435.0,28432.0,0.0704]
[1680399730097,0.3007,28433.0,28432.0,0.0704]
[1680399730994,0.3027,28433.0,28432.0,0.0704]
[1680399734695,0.3027,28433.0,28429.0,0.0704]
[1680399734892,0.0704,28430.0,28429.0,0.1204]
[1680399735094,0.0704,28430.0,28429.0,0.0704]
[1680399736003,0.0704,28430.0,28429.0,0.0874]
[1680399736199,0.0714,28430.0,28429.0,0.0874]
[1680399736699,0.0724,28430.0,28429.0,0.0704]
[1680399736902,0.3731,28430.0,28427.0,0.0704]
[1680399737102,0.0704,28428.0,28427.0,0.0704]
[1680399738299,0.0714,28428.0,28427.0,0.0814]
[1680399740495,0.1414,28428.0,28424.0,0.1199]
[1680399740700,0.0704,28425.0,28424.0,0.0699]
[1680399741394,0.0704,28425.0,28424.0,0.0799]
[1680399741799,0.0724,28425.0,28424.0,0.0859]
[1680399746997,0.002,28425.0,28424.0,0.0859]
[1680399757009,0.002,28425.0,28424.0,0.0864]
[1680399762311,0.0724,28425.0,28424.0,0.016]
[1680399766915,0.0724,28425.0,28424.0,0.0864]
[1680399769211,0.3731,28425.0,28424.0,0.0864]
[1680399774818,0.4435,28425.0,28424.0,0.016]
[1680399775023,0.05,28424.0,28421.0,0.0702]
[1680399775316,0.0698,28422.0,28421.0,0.0702]
[1680399776023,0.3729,28425.0,28421.0,0.0704]
[1680399776320,0.003,28424.0,28423.0,0.0704]
[1680399776714,0.3709,28425.0,28423.0,0.0704]
[1680399777423,0.003,28424.0,28423.0,0.0714]
[1680399777818,0.3709,28425.0,28423.0,0.0704]
[1680399778014,0.3739,28425.0,28423.0,0.0714]
[1680399779227,0.006,28424.0,28423.0,0.0704]
[1680399779414,0.3709,28425.0,28423.0,0.0704]
[1680399779617,0.3769,28425.0,28423.0,0.0704]
[1680399780121,0.3709,28425.0,28423.0,0.0714]
[1680399780619,0.3769,28425.0,28423.0,0.0704]
[1680399786934,0.3067,28425.0,28424.0,0.0704]
[1680399796939,0.3771,28425.0,28424.0,0.0699]
[1680399797843,0.0764,28425.0,28424.0,0.0699]
[1680399801949,0.006,28425.0,28424.0,0.3711]
[1680399803251,0.0699,28428.0,28424.0,0.3711]
[1680399803552,0.0699,28428.0,28426.0,0.0702]
[1680399803754,0.0699,28428.0,28427.0,0.05]
[1680399804849,0.0889,28428.0,28427.0,0.05]
[1680399805048,0.0889,28428.0,28426.0,0.0702]
[1680399806953,0.019,28428.0,28427.0,0.0704]
[1680399807150,0.3711,28429.0,28427.0,0.0704]
[1680399807344,0.3711,28429.0,28425.0,0.05]
[1680399807345,0.019,28428.0,28425.0,0.05]
[1680399807555,0.019,28428.0,28427.0,0.0698]
[1680399811744,0.0704,28429.0,28427.0,0.0698]
[1680399811950,0.019,28428.0,28425.0,0.3507]
[1680399812249,0.019,28428.0,28427.0,0.07]
[1680399813156,0.069,28428.0,28427.0,0.07]
[1680399813455,0.019,28428.0,28427.0,0.07]
[1680399814644,0.0894,28428.0,28426.0,0.0704]
[1680399814845,0.3711,28427.0,28426.0,0.0704]
[1680399815048,0.4211,28427.0,28426.0,0.0704]
[1680399815747,0.4401,28427.0,28426.0,0.0704]
[1680399815943,0.3901,28427.0,28426.0,0.0704]
[1680399817059,0.3959,28427.0,28423.0,0.0702]
[1680399817249,0.0703,28425.0,28423.0,0.0702]
[1680399818554,0.0823,28425.0,28423.0,0.0702]
[1680399820458,0.0753,28425.0,28423.0,0.0702]
[1680399822653,0.0703,28425.0,28423.0,0.06996339]
[1680399822854,0.0753,28425.0,28423.0,0.06996339]
[1680399824958,0.0753,28425.0,28423.0,0.11996339]
[1680399825759,0.0753,28425.0,28423.0,0.06996339]
[1680399826659,0.0823,28425.0,28423.0,0.06996339]
[1680399827161,0.0748,28425.0,28423.0,0.0704]
[1680399827364,0.0748,28425.0,28423.0,0.1204]
[1680399827661,0.0818,28425.0,28423.0,0.1204]
[1680399828060,0.0698,28425.0,28423.0,0.1204]
[1680399828362,0.0748,28425.0,28423.0,0.1204]
[1680399829157,0.0698,28425.0,28423.0,0.1204]
[1680399829462,0.0818,28425.0,28423.0,0.1204]
[1680399831154,0.0818,28425.0,28423.0,0.0704]
[1680399836268,0.0702,28424.0,28423.0,0.07]
[1680399837061,0.0823,28425.0,28423.0,0.0704]
[1680399837975,0.005,28424.0,28423.0,0.0704]
[1680399838474,0.0823,28425.0,28423.0,0.0704]
[1680399838876,0.005,28424.0,28423.0,0.0704]
[1680399839472,0.0823,28425.0,28423.0,0.0704]
[1680399840874,0.0703,28425.0,28423.0,0.0704]
[1680399841174,0.005,28424.0,28423.0,0.0704]
[1680399841375,0.0823,28425.0,28423.0,0.0704]
[1680399841769,0.0703,28425.0,28423.0,0.0704]
[1680399841964,0.0823,28425.0,28423.0,0.0704]
[1680399842975,0.0823,28425.0,28424.0,0.1901]
[1680399842976,0.012,28425.0,28424.0,0.1901]
[1680399843574,0.012,28425.0,28423.0,0.0704]
[1680399843779,0.3709,28424.0,28423.0,0.05]
[1680399844279,0.3709,28424.0,28422.0,0.05]
[1680399844480,0.0704,28423.0,28422.0,0.05]
[1680399846578,0.0704,28423.0,28422.0,0.051]
[1680399847181,0.3007,28424.0,28422.0,0.0714]
[1680399847381,0.3007,28424.0,28423.0,0.0698]
[1680399847979,0.3067,28424.0,28423.0,0.0698]
[1680399848876,0.3771,28424.0,28420.0,0.0704]
[1680399849083,0.0702,28421.0,28419.0,0.3007]
[1680399849281,0.0704,28420.0,28419.0,0.3507]
[1680399849476,0.0703,28422.0,28419.0,0.4211]
[1680399849777,0.0703,28422.0,28420.0,0.05]
[1680399850075,0.002,28421.0,28420.0,0.05]
[1680399850280,0.002,28421.0,28420.0,0.1204]
[1680399850479,0.0713,28422.0,28420.0,0.1204]
[1680399850981,0.002,28421.0,28420.0,0.1214]
[1680399851369,0.0713,28422.0,28420.0,0.1214]
[1680399852484,0.002,28421.0,28420.0,0.1214]
[1680399852977,0.0713,28422.0,28420.0,0.1214]
[1680399853379,0.002,28421.0,28420.0,0.1214]
[1680399854083,0.0713,28422.0,28420.0,0.1214]
[1680399855176,0.002,28421.0,28420.0,0.1214]
[1680399855575,0.0713,28422.0,28420.0,0.1214]
[1680399856180,0.001,28422.0,28421.0,0.1408]
[1680399856379,0.3007,28424.0,28421.0,0.1908]
[1680399856685,0.3007,28424.0,28423.0,0.0704]
[1680399858282,0.3067,28424.0,28423.0,0.0704]
[1680399858875,0.3007,28424.0,28423.0,0.0704]
[1680399859073,0.3067,28424.0,28423.0,0.0704]
[1680399860484,0.3771,28424.0,28422.0,0.0704]
[1680399862380,0.3771,28424.0,28420.0,0.05]
[1680399862381,0.0704,28423.0,28419.0,0.3711]
[1680399862576,0.0704,28420.0,28419.0,0.3711]
[1680399864383,0.0724,28420.0,28419.0,0.3721]
[1680399865885,0.002,28420.0,28419.0,0.4423]
[1680399873985,0.002,28420.0,28419.0,0.44214377]
[1680399879791,0.002,28420.0,28419.0,0.37194377]
[1680399890193,0.002,28420.0,28419.0,0.0714]
[1680399906017,0.0724,28420.0,28419.0,0.001]
[1680399906220,0.0724,28420.0,28417.0,0.3711]
[1680399906520,0.0704,28418.0,28417.0,0.3711]
[1680399907821,0.0734,28418.0,28417.0,0.3711]
[1680399908218,0.0734,28418.0,28417.0,0.0704]
[1680399908419,0.1234,28418.0,28417.0,0.0704]
[1680399908928,0.1918,28418.0,28414.0,0.0704]
[1680399909127,0.0702,28415.0,28414.0,0.0704]
[1680399910420,0.0722,28415.0,28414.0,0.0704]
[1680399916533,0.0722,28415.0,28411.0,0.05]
[1680399916733,0.0722,28415.0,28413.0,0.0698]
[1680399916933,0.0702,28414.0,28412.0,0.0704]
[1680399917621,0.421,28413.0,28409.0,0.4209]
[1680399917828,0.0698,28410.0,28409.0,0.3709]
[1680399919030,0.0728,28410.0,28409.0,0.3709]
[1680399921438,0.0728,28410.0,28409.0,0.0702]
[1680399922934,0.4443,28410.0,28406.0,0.3007]
[1680399923137,0.0698,28407.0,28406.0,0.3007]
[1680399924441,0.0728,28407.0,28406.0,0.3007]
[1680399924639,0.0728,28407.0,28406.0,0.3507]
[1680399924940,0.003,28407.0,28406.0,0.3507]
[1680399925534,0.003,28407.0,28406.0,0.4211]
[1680399927029,0.003,28407.0,28406.0,0.4915]
[1680399927229,0.0704,28412.0,28407.0,0.05]
[1680399927437,0.0704,28415.0,28411.0,0.0702]
[1680399927732,0.0704,28415.0,28410.0,0.0702]
[1680399927733,0.0704,28415.0,28413.0,0.0702]
[1680399927932,0.0704,28415.0,28413.0,0.1202]
[1680399928636,0.0704,28415.0,28413.0,0.0702]
[1680399929035,0.0724,28415.0,28413.0,0.0702]
[1680399929437,0.0724,28415.0,28413.0,0.0732]
[1680399931939,0.1907,28414.0,28413.0,0.003]
[1680399932846,0.1937,28414.0,28413.0,0.003]
[1680399933847,0.1437,28414.0,28413.0,0.003]
[1680399935647,0.05,28413.0,28406.0,0.0704]
[1680399935841,0.0704,28407.0,28406.0,0.0704]
[1680399936048,0.3709,28407.0,28402.0,0.7996]
[1680399936245,0.3709,28407.0,28400.0,0.3007]
[1680399936246,0.0703,28404.0,28400.0,0.3007]
[1680399936546,0.0703,28404.0,28403.0,0.0699]
[1680399937042,0.0703,28404.0,28403.0,0.07]
[1680399938543,0.0733,28404.0,28403.0,0.07]
[1680399940444,0.003,28404.0,28403.0,0.0698]
[1680399942351,0.0704,28406.0,28403.0,0.0698]
[1680399942555,0.0704,28406.0,28401.0,0.1202]
[1680399942556,0.002,28404.0,28401.0,0.1202]
[1680399942748,0.002,28404.0,28403.0,0.0698]
[1680399944948,0.001,28404.0,28403.0,0.0698]
[1680399946655,0.3017,28404.0,28403.0,0.0698]
[1680399947047,0.3007,28404.0,28403.0,0.0702]
[1680399948155,0.0704,28405.0,28403.0,0.0702]
[1680399948655,0.001,28404.0,28403.0,0.0702]
[1680399949553,0.0704,28405.0,28403.0,0.0702]
[1680399950055,0.001,28404.0,28403.0,0.0702]
[1680399950356,0.0714,28404.0,28403.0,0.0704]
[1680399950650,0.0704,28404.0,28403.0,0.0704]
[1680399951054,0.0714,28404.0,28403.0,0.3711]
[1680399954259,0.0714,28404.0,28403.0,0.0704]
[1680399955252,0.0714,28404.0,28399.0,0.0702]
[1680399955253,0.1415,28404.0,28399.0,0.0702]
[1680399955454,0.0704,28401.0,28399.0,0.0702]
[1680399956456,0.003,28401.0,28400.0,0.3707]
[1680399956653,0.003,28401.0,28400.0,0.4207]
[1680399957155,0.003,28401.0,28400.0,0.4909]
[1680399957352,0.003,28401.0,28400.0,0.3007]
[1680399957547,0.003,28401.0,28398.0,0.05]
[1680399957855,0.003,28401.0,28400.0,0.0704]
[1680399958258,0.001,28401.0,28400.0,0.0704]
[1680399958659,0.002,28401.0,28400.0,0.0704]
[1680399959760,0.002,28401.0,28400.0,0.3711]
[1680399961057,0.0702,28402.0,28400.0,0.3711]
[1680399961261,0.0702,28402.0,28400.0,0.3007]
[1680399961262,0.002,28401.0,28400.0,0.3007]
[1680399961562,0.002,28401.0,28400.0,0.3705]
[1680399975678,0.002,28401.0,28400.0,0.4407]
[1680399975874,0.002,28401.0,28400.0,0.4907]
[1680399983180,0.002,28401.0,28400.0,0.3507]
[1680399983681,0.002,28401.0,28400.0,0.4206]
[1680399988776,0.002,28401.0,28400.0,0.4204412]
[1680400012004,0.002,28401.0,28400.0,0.4206]
[1680400016707,0.002,28401.0,28400.0,0.491]
[1680400025910,0.3007,28409.0,28401.0,0.052]
[1680400026106,0.3007,28409.0,28408.0,0.0698]
[1680400026311,0.3007,28409.0,28408.0,0.1198]
[1680400026813,0.6925,28412.0,28408.0,0.1198]
[1680400027014,0.1263662,28413.0,28411.0,0.0697]
[1680400027015,0.0704,28413.0,28411.0,0.0697]
[1680400027316,0.0704,28413.0,28412.0,0.1202]
[1680400027807,0.0974,28413.0,28412.0,0.1202]
[1680400028016,0.0974,28413.0,28412.0,0.0702]
[1680400029413,0.0824,28413.0,28412.0,0.0702]
[1680400031910,0.012,28413.0,28412.0,0.0699]
[1680400037016,0.012,28413.0,28412.0,0.1403]
[1680400049028,0.012,28413.0,28412.0,0.5818]
[1680400055742,0.3007,28418.0,28413.0,0.05]
[1680400055933,0.3007,28418.0,28417.0,0.0704]
[1680400056235,0.3007,28418.0,28417.0,0.1204]
[1680400056635,0.3007,28418.0,28417.0,0.0704]
[1680400056938,0.4704,28420.0,28417.0,0.0704]
[1680400057137,0.4704,28420.0,28419.0,0.0704]
[1680400058647,0.4934,28420.0,28419.0,0.0714]
[1680400058946,0.0934,28420.0,28419.0,0.0714]
[1680400060447,0.0934,28420.0,28419.0,0.0712]
[1680400061349,0.023,28420.0,28419.0,0.1418]
[1680400062239,0.023,28420.0,28419.0,0.4425]
[1680400065447,0.7007,28427.0,28419.0,0.4425]
[1680400065448,0.1961662,28427.0,28420.0,0.05]
[1680400065746,0.0698,28427.0,28426.0,0.0699]
[1680400066050,0.0698,28427.0,28426.0,0.1199]
[1680400066938,0.4974662,28429.0,28426.0,0.1202]
[1680400067144,0.4974662,28429.0,28427.0,0.0699]
[1680400067450,0.3711,28429.0,28428.0,0.05]
[1680400068038,0.3731,28429.0,28428.0,0.05]
[1680400068442,0.3711,28429.0,28428.0,0.002]
[1680400068649,0.3731,28429.0,28428.0,0.052]
[1680400069552,0.3731,28429.0,28428.0,0.002]
[1680400069948,0.3731,28429.0,28428.0,0.052]
[1680400070543,0.3731,28429.0,28428.0,0.002]
[1680400077159,0.3731,28429.0,28428.0,0.0717]
[1680400084562,0.5835,28429.0,28421.0,0.0703]
[1680400084755,0.0699,28422.0,28421.0,0.0703]
[1680400085862,0.0699,28422.0,28421.0,0.0753]
[1680400087961,0.0719,28422.0,28421.0,0.0703]
[1680400090557,0.0719,28422.0,28419.0,0.3007]
[1680400090868,0.0723,28422.0,28421.0,0.0704]
[1680400096976,0.0719,28422.0,28421.0,0.0704]
[1680400106972,0.0724,28422.0,28421.0,0.0701]
[1680400116988,0.0724,28422.0,28420.0,0.0704]
[1680400117289,0.002,28422.0,28421.0,0.05]
[1680400117587,0.0724,28422.0,28420.0,0.1204]
[1680400117788,0.0699,28421.0,28420.0,0.1204]
[1680400118385,0.0699,28421.0,28420.0,0.0704]
[1680400119096,0.0699,28421.0,28420.0,0.0754]
[1680400124599,0.0719,28421.0,28420.0,0.0704]
[1680400126905,0.0724,28421.0,28420.0,0.0702]
[1680400127109,0.0724,28421.0,28420.0,0.1202]
[1680400127306,0.0724,28421.0,28420.0,0.0702]
[1680400127696,0.0718,28421.0,28418.0,0.0704]
[1680400127900,0.3708,28419.0,28418.0,0.0704]
[1680400130804,0.3728,28419.0,28418.0,0.0704]
[1680400131905,0.3728,28419.0,28418.0,0.07031157]
[1680400137706,0.3708,28419.0,28418.0,0.07031157]
[1680400137912,0.3768,28419.0,28418.0,0.07131157]
[1680400138911,0.0761,28419.0,28418.0,0.07131157]
[1680400139615,0.0711,28419.0,28418.0,0.07031157]
[1680400147023,0.0713,28419.0,28417.0,0.0704]
[1680400147224,0.001,28419.0,28418.0,0.05]
[1680400147425,0.0713,28419.0,28418.0,0.05]
[1680400148323,0.0713,28419.0,28417.0,0.0704]
[1680400148623,0.0704,28418.0,28417.0,0.0704]
[1680400149816,0.3711,28418.0,28417.0,0.0754]
[1680400157030,0.3007,28418.0,28417.0,0.0754]
[1680400158638,0.371,28421.0,28417.0,0.1254]
[1680400158832,0.371,28421.0,28420.0,0.0704]
[1680400160338,0.371,28421.0,28420.0,0.0714]
[1680400160339,0.377,28421.0,28420.0,0.0714]
[1680400166934,0.3067,28421.0,28420.0,0.0713]
[1680400168236,0.0704,28422.0,28420.0,0.0713]
[1680400168237,0.4270662,28425.0,28420.0,0.1416]
[1680400168437,0.3007,28425.0,28424.0,0.0703]
[1680400169132,0.4270662,28425.0,28424.0,0.0703]
[1680400169338,0.3147,28425.0,28424.0,0.0723]
[1680400175648,0.014,28425.0,28424.0,0.0723]
[1680400181147,0.2041,28425.0,28420.0,0.0704]
[1680400181447,0.0704,28421.0,28420.0,0.0704]
[1680400181647,0.1204,28421.0,28420.0,0.0704]
[1680400181943,0.0704,28421.0,28420.0,0.0704]
[1680400182334,0.3007,28422.0,28420.0,0.001]
[1680400183451,0.3067,28422.0,28420.0,0.001]
[1680400192253,0.006,28422.0,28420.0,0.001]
[1680400192553,0.3007,28421.0,28420.0,0.001]
[1680400197354,0.3007,28424.0,28420.0,0.001]
[1680400198256,0.3007,28424.0,28417.0,0.3507]
[1680400198462,0.3167,28424.0,28420.0,0.002]
[1680400201662,0.016,28424.0,28420.0,0.002]
[1680400201865,0.016,28424.0,28420.0,0.052]
[1680400203667,0.016,28424.0,28422.0,0.3007]
[1680400203866,0.016,28424.0,28423.0,0.05]
[1680400204967,0.016,28424.0,28423.0,0.052]
[1680400205468,0.016,28424.0,28423.0,0.3527]
[1680400231490,0.016,28424.0,28423.0,0.35249291]
[1680400240596,0.016,28424.0,28423.0,0.3027]
[1680400241289,0.016,28424.0,28423.0,0.002]
[1680400247593,0.0862,28424.0,28423.0,0.0724]
[1680400249196,0.3869,28424.0,28423.0,0.0724]
[1680400256899,0.3867,28424.0,28423.0,0.002]
[1680400275522,0.3167,28424.0,28423.0,0.0724]
[1680400275722,0.016,28424.0,28423.0,0.0724]
[1680400276021,0.3167,28424.0,28423.0,0.0724]
[1680400276719,0.016,28424.0,28423.0,0.0724]
[1680400281424,0.01584765,28424.0,28423.0,0.0724]
[1680400295932,0.01584765,28424.0,28423.0,0.1427]
[1680400301638,0.3175,28429.0,28423.0,0.4244]
[1680400301838,0.4270662,28430.0,28428.0,0.0704]
[1680400302033,0.3007,28430.0,28429.0,0.0704]
[1680400304045,0.3017,28430.0,28429.0,0.0724]
[1680400308945,0.001,28430.0,28429.0,0.0724]
[1680400315049,0.001,28430.0,28429.0,0.1428]
[1680400315244,0.001,28430.0,28429.0,0.1928]
[1680400315449,0.4270662,28437.0,28430.0,0.05]
[1680400315649,0.4270662,28437.0,28436.0,0.0697]
[1680400316150,0.3007,28437.0,28436.0,0.0697]
[1680400316554,0.3007,28437.0,28436.0,0.0717]
[1680400317057,0.3707,28437.0,28436.0,0.0724]
[1680400317256,0.3711,28437.0,28436.0,0.0717]
[1680400319961,0.3007,28437.0,28436.0,0.0724]
[1680400320855,0.3711,28437.0,28436.0,0.002]
[1680400326466,0.3007,28437.0,28436.0,0.002]
[1680400326669,0.3711,28437.0,28436.0,0.002]
[1680400327462,0.3007,28437.0,28436.0,0.1224]
[1680400330466,0.3007,28437.0,28436.0,0.0724]
[1680400330666,0.3706,28437.0,28436.0,0.002]
[1680400336983,0.3007,28437.0,28436.0,0.0724]
[1680400337876,0.30076,28439.0,28436.0,0.1427]
[1680400337877,6e-05,28439.0,28436.0,0.1427]
[1680400338073,6e-05,28439.0,28438.0,0.0701]
[1680400338478,0.37116,28439.0,28437.0,0.05]
[1680400338678,0.07,28438.0,28436.0,0.052]
[1680400338879,0.0704,28437.0,28436.0,0.052]
[1680400339081,0.0704,28437.0,28436.0,0.05]
[1680400339484,0.0704,28437.0,28436.0,0.052]
[1680400340585,0.30076,28439.0,28436.0,0.1224]
[1680400340784,0.30076,28439.0,28438.0,0.0704]
[1680400341483,0.42116,28439.0,28436.0,0.002]
[1680400341688,0.0704,28437.0,28436.0,0.002]
[1680400341987,0.0704,28437.0,28436.0,0.0724]
[1680400342584,0.0704,28437.0,28436.0,0.0704]
[1680400343181,0.0704,28437.0,28436.0,0.0724]
[1680400366907,0.0704,28437.0,28436.0,0.0717]
[1680400367308,0.3007,28438.0,28436.0,0.0724]
[1680400367507,0.3007,28438.0,28437.0,0.0701]
[1680400368712,0.3007,28438.0,28437.0,0.0721]
[1680400372423,0.4205,28438.0,28437.0,0.002]
[1680400372719,0.05,28437.0,28432.0,0.0701]
[1680400372915,0.0698,28433.0,28432.0,0.0701]
[1680400373821,0.0698,28433.0,28432.0,0.0721]
[1680400374020,0.1198,28433.0,28432.0,0.0721]
[1680400374209,0.1198,28433.0,28432.0,0.0711]
[1680400374210,0.0718,28433.0,28432.0,0.0711]
[1680400377516,0.0724,28433.0,28432.0,0.0708]
[1680400384821,0.002,28433.0,28432.0,0.0707]
[1680400402337,0.1222,28433.0,28429.0,0.05]
[1680400402536,0.0704,28432.0,28431.0,0.0704]
[1680400404641,0.0734,28432.0,28431.0,0.0714]
[1680400421959,0.0734,28432.0,28431.0,0.07134]
[1680400424053,0.1234,28432.0,28431.0,0.07134]
[1680400424259,0.0734,28432.0,28431.0,0.07134]
[1680400424763,0.1234,28432.0,28431.0,0.07134]
[1680400425264,0.0734,28432.0,28431.0,0.07134]
[1680400426668,0.1234,28432.0,28431.0,0.07134]
[1680400427169,0.3339,28432.0,28426.0,0.3069]
[1680400427369,0.0704,28427.0,28425.0,0.3711]
[1680400427569,0.07,28426.0,28425.0,0.3711]
[1680400428765,0.07,28426.0,28425.0,0.0704]
[1680400428969,0.07,28426.0,28425.0,0.0984]
[1680400429270,0.1408,28426.0,28425.0,0.028]
[1680400429568,0.4415,28426.0,28425.0,0.028]
[1680400430468,0.4415,28426.0,28425.0,0.002]
[1680400430766,0.4415,28426.0,28421.0,0.0698]
[1680400430962,0.3747,28426.0,28425.0,0.001]
[1680400431162,0.7462,28426.0,28425.0,0.001]
[1680400431763,0.7422,28426.0,28421.0,0.0698]
[1680400431966,0.3751,28426.0,28425.0,0.002]
[1680400432269,0.7462,28426.0,28425.0,0.002]
[1680400434066,0.05,28425.0,28419.0,0.05]
[1680400434259,0.0704,28420.0,28418.0,0.4204]
[1680400434461,0.0704,28419.0,28418.0,0.4204]
[1680400434671,0.0704,28419.0,28418.0,0.3704]
[1680400436068,0.0704,28419.0,28418.0,0.3924]
[1680400437070,0.0698,28419.0,28418.0,0.3931]
[1680400437568,0.0698,28419.0,28418.0,0.3861]
[1680400437769,0.0698,28419.0,28418.0,0.0784]
[1680400438169,0.3705,28419.0,28418.0,0.0784]
[1680400438871,0.3705,28419.0,28418.0,0.0854]
[1680400439371,0.3705,28419.0,28418.0,0.0784]
[1680400439766,0.3705,28419.0,28418.0,0.0724]
[1680400441565,0.3755,28419.0,28418.0,0.0704]
[1680400443064,0.3745,28419.0,28418.0,0.0704]
[1680400444069,0.05,28418.0,28413.0,0.05]
[1680400444372,0.3711,28416.0,28415.0,0.0704]
[1680400445564,0.3721,28416.0,28415.0,0.0864]
[1680400445965,0.3721,28416.0,28415.0,0.0794]
[1680400446974,0.3721,28416.0,28415.0,0.009]
[1680400451678,0.0714,28416.0,28415.0,0.009]
[1680400456981,0.0708,28416.0,28415.0,0.009]
[1680400480896,0.1412,28416.0,28415.0,0.00081249]
[1680400490103,0.2826,28416.0,28415.0,0.00081249]
[1680400499717,0.1413,28416.0,28415.0,0.00081249]
[1680400504315,0.2821,28416.0,28415.0,0.00081249]
[1680400506910,0.1413,28416.0,28415.0,0.00081249]
[1680400508013,0.2821,28416.0,28415.0,0.00081249]
[1680400508314,0.05,28414.0,28407.0,0.05]
[1680400508510,0.3707,28408.0,28406.0,0.1201]
[1680400508709,0.0704,28407.0,28406.0,0.1201]
[1680400510309,0.0704,28407.0,28406.0,0.0701]
[1680400510713,0.0724,28407.0,28406.0,0.0881]
[1680400520524,0.0724,28407.0,28406.0,0.018]
[1680400520924,0.0724,28407.0,28406.0,0.0884]
[1680400526932,0.002,28407.0,28406.0,0.0884]
[1680400556172,0.002,28407.0,28406.0,0.0864]
[1680400556965,0.0724,28407.0,28406.0,0.0864]
[1680400557270,0.0714,28407.0,28406.0,0.0854]